bitfinex/quotes_SOLUSD_20260224
["timestamp","ask_amount","ask_price","bid_price","bid_amount"]
[1771916736150,11.67692619,76.7,76.662,0.73224448]
[1771916736926,13.03580459,76.712,76.671,0.73224448]
[1771916737148,11.67692619,76.71,76.671,0.73224448]
[1771916737446,13.03627996,76.709,76.673,0.73224448]
[1771916738532,13.03571446,76.713,76.673,0.73224448]
[1771916738736,13.03458074,76.719,76.691,0.73224448]
[1771916739040,0.74673849,76.718,76.691,0.73224448]
[1771916739247,0.74673849,76.709,76.683,0.73224448]
[1771916739631,13.03644991,76.708,76.683,0.73224448]
[1771916739836,13.03644991,76.708,76.685,0.73224448]
[1771916741057,0.74673849,76.699,76.67,13.04275363]
[1771916741550,0.74673849,76.689,76.655,0.73224448]
[1771916743556,55.83840845,76.71,76.643,0.73224448]
[1771916743557,0.74673849,76.679,76.643,0.73224448]
[1771916743856,11.67692619,76.67,76.643,0.73224448]
[1771916744750,0.74673849,76.679,76.643,0.73224448]
[1771916745752,13.04155037,76.678,76.643,0.73224448]
[1771916745950,0.74673849,76.677,76.643,0.73224448]
[1771916746785,0.74673849,76.677,76.645,0.73224448]
[1771916748251,13.04189055,76.676,76.645,0.73224448]
[1771916748550,13.04189055,76.676,76.647,0.82283583]
[1771916748759,0.83165302,76.675,76.647,0.82283583]
[1771916749732,13.04093791,76.682,76.651,0.82283583]
[1771916750753,0.83165302,76.687,76.653,0.82283583]
[1771916750949,11.67692619,76.68,76.653,0.82283583]
[1771916751150,0.83165302,76.679,76.653,0.82283583]
[1771916752655,13.04325142,76.668,76.643,0.82283583]
[1771916752863,0.83165302,76.667,76.643,0.82283583]
[1771916754156,0.83165302,76.667,76.644,13.04733573]
[1771916754364,0.83165302,76.667,76.645,0.82283583]
[1771916754854,13.04322756,76.669,76.645,0.82283583]
[1771916754855,0.83165302,76.668,76.645,0.82283583]
[1771916755056,0.83165302,76.668,76.639,13.8708889]
[1771916755362,0.83165302,76.668,76.64,0.82283583]
[1771916755558,0.83165302,76.659,76.633,13.87198597]
[1771916755957,0.83165302,76.659,76.634,0.82283583]
[1771916758040,0.83165302,76.649,76.622,0.82283583]
[1771916760845,3.69383402,76.68,76.595,65.27796808]
[1771916760846,0.83165302,76.629,76.603,0.82283583]
[1771916762578,0.83165302,76.636,76.603,0.82283583]
[1771916762878,0.83165302,76.636,76.593,13.05602339]
[1771916762879,13.04478273,76.659,76.608,45.6871345]
[1771916763082,13.04478273,76.659,76.609,0.82283583]
[1771916764166,32.61068152,76.662,76.608,45.6871345]
[1771916764167,11.6872269,76.67,76.614,0.28432314]
[1771916764351,11.6872269,76.67,76.626,0.82283583]
[1771916764558,13.04276354,76.671,76.626,0.82283583]
[1771916765056,13.04276354,76.671,76.628,0.82283583]
[1771916766449,13.03950971,76.69,76.636,0.82283583]
[1771916766762,0.83165302,76.706,76.646,0.82283583]
[1771916766960,14.15293594,76.705,76.648,0.82283583]
[1771916767163,0.83165302,76.704,76.65,0.82283583]
[1771916767348,0.83165302,76.699,76.656,0.82283583]
[1771916767553,0.83165302,76.689,76.656,0.82283583]
[1771916769367,0.83165302,76.679,76.648,0.82283583]
[1771916769871,0.83165302,76.687,76.648,0.82283583]
[1771916770445,13.03627996,76.709,76.656,0.82283583]
[1771916770654,0.83165302,76.708,76.656,0.82283583]
[1771916771159,13.03627996,76.709,76.656,0.82283583]
[1771916771368,13.03627996,76.709,76.658,0.82283583]
[1771916772978,0.83165302,76.724,76.661,1.10715897]
[1771916773165,0.83165302,76.753,76.688,0.82283583]
[1771916773475,0.2,76.76,76.716,0.82283583]
[1771916773868,11.88762704,76.76,76.716,0.82283583]
[1771916774172,0.83165302,76.749,76.716,0.82283583]
[1771916775370,0.83165302,76.749,76.694,3.69383402]
[1771916775371,0.83165302,76.749,76.718,0.82283583]
[1771916776060,13.02296771,76.788,76.718,0.82283583]
[1771916776265,13.02296771,76.788,76.717,149.90158633]
[1771916776266,0.83165302,76.759,76.722,0.82283583]
[1771916777383,0.83165302,76.777,76.728,0.82283583]
[1771916778881,0.84401743,76.759,76.728,0.82283583]
[1771916780480,0.84401743,76.759,76.73,0.84317784]
[1771916781082,0.2,76.78,76.735,0.28432314]
[1771916781288,0.2,76.79,76.748,5.64518502]
[1771916781466,0.2,76.79,76.757,0.84317784]
[1771916781661,0.84401743,76.811,76.767,0.84317784]
[1771916782588,58.76,76.861,76.778,0.28432314]
[1771916782589,0.84401743,76.833,76.778,0.28432314]
[1771916782767,13.01541024,76.832,76.787,0.84317784]
[1771916782966,0.85375819,76.831,76.787,0.84317784]
[1771916784679,13.01574905,76.83,76.789,0.83770672]
[1771916785870,0.85375819,76.829,76.789,0.83770672]
[1771916787073,13.01608788,76.828,76.791,0.83770672]
[1771916787272,13.86984607,76.828,76.791,0.83770672]
[1771916788291,0.85375819,76.827,76.791,0.83770672]
[1771916789892,0.85375819,76.827,76.793,0.83770672]
[1771916790065,0.85375819,76.836,76.797,0.83770672]
[1771916790269,0.85375819,76.847,76.797,0.83770672]
[1771916790592,0.85375819,76.847,76.802,0.28432314]
[1771916790785,0.85375819,76.847,76.807,0.83770672]
[1771916790978,0.85375819,76.849,76.807,0.83770672]
[1771916791187,0.85375819,76.839,76.807,0.83770672]
[1771916791876,0.85375819,76.839,76.809,0.83770672]
[1771916793193,11.68762704,76.82,76.79,0.83770672]
[1771916793377,11.68762704,76.81,76.79,0.83770672]
[1771916794572,11.68762704,76.8,76.781,0.90086739]
[1771916794883,13.01930763,76.809,76.781,0.90086739]
[1771916795397,11.68762704,76.81,76.781,0.90086739]
[1771916795605,13.01872949,76.813,76.781,0.90086739]
[1771916795899,11.68762704,76.83,76.781,0.90086739]
[1771916796078,11.68762704,76.82,76.781,0.90086739]
[1771916796699,11.68762704,76.82,76.783,0.90086739]
[1771916796900,13.01730347,76.821,76.783,0.90086739]
[1771916797300,11.68762704,76.83,76.783,0.90086739]
[1771916797301,13.01658971,76.826,76.783,0.90086739]
[1771916797632,13.01658971,76.826,76.782,45.58360031]
[1771916797633,13.01253106,76.849,76.796,0.28432314]
[1771916797893,11.68762704,76.85,76.807,0.90086739]
[1771916798885,13.01253106,76.849,76.809,0.90086739]
[1771916799382,11.68762704,76.85,76.809,0.90086739]
[1771916799696,13.01253106,76.849,76.809,0.90086739]
[1771916802297,11.68762704,76.85,76.811,0.90086739]
[1771916804902,45.53793309,76.859,76.813,0.90086739]
[1771916805097,11.68762704,76.85,76.813,0.90086739]
[1771916807804,11.68762704,76.85,76.815,0.90086739]
[1771916808016,13.01253106,76.849,76.815,0.90086739]
[1771916810801,13.01253106,76.849,76.817,0.90086739]
[1771916811522,13.01253106,76.849,76.816,13.01812122]
[1771916811523,0.2,76.86,76.824,0.28432314]
[1771916811689,0.2,76.87,76.837,0.90086739]
[1771916812090,0.2,76.87,76.838,5.64518502]
[1771916812302,0.2,76.87,76.847,0.90086739]
[1771916812514,11.88762704,76.89,76.848,0.82410955]
[1771916813211,0.2,76.89,76.85,0.82410955]
[1771916813609,13.00710511,76.882,76.85,0.82410955]
[1771916813802,13.00745327,76.879,76.85,0.82410955]
[1771916814715,13.00687828,76.883,76.85,0.82410955]
[1771916815017,13.20738734,76.88,76.85,0.82410955]
[1771916815894,13.20738734,76.88,76.836,0.82410955]
[1771916815895,11.68762704,76.87,76.836,0.82410955]
[1771916816232,0.07698778,76.879,76.836,0.82410955]
[1771916816522,24.89501438,76.88,76.836,0.82410955]
[1771916817615,24.89501438,76.88,76.838,0.82410955]
[1771916818717,0.2,76.88,76.846,0.82410955]
[1771916818924,0.2,76.89,76.852,0.82410955]
[1771916819221,0.2,76.89,76.856,0.82410955]
[1771916820411,0.2,76.89,76.858,0.82410955]
[1771916821010,0.2,76.89,76.857,45.5391181]
[1771916821011,1e-08,76.89,76.866,0.82410955]
[1771916822014,1e-08,76.91,76.884,0.82410955]
[1771916822311,1e-08,76.91,76.886,0.82410955]
[1771916822711,1e-08,76.91,76.888,0.82410955]
[1771916823122,0.2,76.92,76.895,0.28432314]
[1771916823451,0.2,76.93,76.907,0.82410955]
[1771916823709,11.88762704,76.93,76.897,0.82410955]
[1771916823912,0.2,76.93,76.902,0.28432314]
[1771916824093,0.2,76.93,76.907,0.82410955]
[1771916824930,11.88762704,76.93,76.908,13.00254849]
[1771916825116,11.68762704,76.92,76.896,0.82410955]
[1771916825424,11.88762704,76.93,76.899,0.82410955]
[1771916825616,12.99899907,76.929,76.899,0.82410955]
[1771916825795,11.68762704,76.91,76.878,0.82410955]
[1771916827302,13.00085805,76.918,76.879,13.00745327]
[1771916827518,13.20861672,76.919,76.88,0.82410955]
[1771916827828,0.19464331,76.927,76.886,0.82410955]
[1771916828613,11.88762704,76.93,76.886,0.82410955]
[1771916829207,0.18779332,76.929,76.886,0.82410955]
[1771916829401,11.68762704,76.92,76.888,0.82410955]
[1771916830415,0.18102202,76.922,76.888,0.82410955]
[1771916830598,11.68762704,76.92,76.888,0.82410955]
[1771916831222,0.37432848,76.93,76.894,0.82410955]
[1771916831223,0.2,76.93,76.894,0.82410955]
[1771916831407,0.2,76.93,76.906,0.82410955]
[1771916832030,12.99393183,76.959,76.906,0.82410955]
[1771916832323,51.94285944,77.008,76.904,0.16788704]
[1771916832324,0.16771183,76.979,76.926,0.82410955]
[1771916832506,0.16117118,76.969,76.926,0.82410955]
[1771916832821,11.60545582,76.96,76.926,0.82410955]
[1771916833005,0.16117118,76.969,76.926,0.82410955]
[1771916833406,0.16117118,76.969,76.928,0.82410955]
[1771916833805,11.60545582,76.96,76.928,0.82410955]
[1771916834321,0.47711594,76.949,76.917,32.50234086]
[1771916834526,0.47711594,76.949,76.907,9.33901904]
[1771916835207,0.47072468,76.969,76.907,9.33901904]
[1771916835421,0.2,76.97,76.907,9.33901904]
[1771916835613,0.2,76.97,76.912,9.33901904]
[1771916836204,1e-08,76.97,76.912,9.33901904]
[1771916836404,1e-08,76.97,76.94,0.28432314]
[1771916836624,1e-08,76.97,76.947,0.82410955]
[1771916837326,0.45816154,77.009,76.967,0.82410955]
[1771916837503,0.45816154,77.009,76.969,0.82410955]
[1771916838205,3.79383402,77.04,76.96,12.99376299]
[1771916838206,11.60545582,76.98,76.96,12.99376299]
[1771916838417,0.44588534,76.989,76.96,13.72825238]
[1771916838607,0.44588534,76.989,76.96,12.99376299]
[1771916839327,0.43985279,77.018,76.963,0.73448939]
[1771916839641,0.43985279,77.018,76.977,0.73448939]
[1771916840018,11.70545582,77.02,76.977,0.73448939]
[1771916840219,0.1,77.02,76.987,0.73448939]
[1771916840416,11.70545582,77.02,76.987,0.73448939]
[1771916840726,0.43973993,76.999,76.973,12.99156847]
[1771916840927,12.98380918,77.019,76.961,33.21824225]
[1771916840928,11.60545582,76.99,76.964,12.99300709]
[1771916841624,11.60545582,76.98,76.961,0.73448939]
[1771916841817,11.60545582,76.98,76.959,12.9939045]
[1771916843130,0.43957545,77.018,76.962,0.72892577]
[1771916843321,0.43957545,77.018,76.97,0.28432314]
[1771916843520,11.60545582,77.01,76.977,0.72892577]
[1771916843727,0.43957545,77.018,76.979,0.72892577]
[1771916843927,12.98414635,77.017,76.979,0.72892577]
[1771916844442,11.60545582,77.0,76.974,12.99137992]
[1771916844643,11.60545582,77.0,76.974,13.72030569]
[1771916844846,0.43946892,77.008,76.975,0.72892577]
[1771916845423,11.60545582,77.01,76.975,0.72892577]
[1771916845640,13.42356292,77.017,76.976,12.99106214]
[1771916845838,11.60545582,77.01,76.977,0.72892577]
[1771916846238,0.43941657,76.999,76.964,12.99298467]
[1771916846443,11.60545582,76.99,76.964,12.99298467]
[1771916846627,11.60545582,77.0,76.965,0.72892577]
[1771916846824,12.04482065,77.01,76.967,0.72892577]
[1771916847442,12.98428107,77.017,76.967,0.72892577]
[1771916847744,11.60545582,77.0,76.967,0.72892577]
[1771916847941,0.1,77.02,76.969,0.72892577]
[1771916848243,0.43931367,77.019,76.969,0.72892577]
[1771916848446,0.1,77.02,76.977,0.72892577]
[1771916848641,0.1,77.02,76.987,0.72892577]
[1771916849936,0.43921312,77.019,76.978,0.72892577]
[1771916851932,0.43921312,77.019,76.98,0.72892577]
[1771916852732,0.1,77.02,76.984,0.72892577]
[1771916852933,0.1,77.02,76.979,45.46694552]
[1771916852934,0.1,77.02,76.988,0.72892577]
[1771916853534,11.70545582,77.03,76.979,45.46694552]
[1771916853535,0.1,77.03,76.994,0.72892577]
[1771916853847,0.1,77.03,76.971,51.96719749]
[1771916853848,0.43901886,77.009,76.981,12.99021836]
[1771916854242,0.43901886,77.019,76.982,0.72892577]
[1771916855348,11.60545582,77.01,76.982,0.72892577]
[1771916855549,11.60545582,77.02,76.982,0.72892577]
[1771916855848,0.1,77.03,76.996,5.64518502]
[1771916856053,0.1,77.05,77.006,0.14216157]
[1771916856344,63.92086188,77.11,77.026,0.72892577]
[1771916856345,0.43892504,77.077,77.026,0.72892577]
[1771916856526,0.43892504,77.077,77.025,0.28432314]
[1771916856527,11.70545582,77.07,77.038,0.72892577]
[1771916856726,0.1,77.07,77.038,0.72892577]
[1771916856927,11.70545582,77.07,77.038,0.72892577]
[1771916857761,0.43883337,77.059,76.996,0.72892577]
[1771916858051,0.43883337,77.049,77.015,0.72892577]
[1771916858228,0.43883337,77.065,77.015,0.72892577]
[1771916858435,11.60545582,77.06,77.017,0.72892577]
[1771916859341,11.60545582,77.05,77.017,0.72892577]
[1771916860046,0.43874379,77.06,77.03,0.72892577]
[1771916860047,12.04419961,77.06,77.03,0.72892577]
[1771916860247,0.1,77.07,77.03,0.72892577]
[1771916860446,0.1,77.07,77.038,0.72892577]
[1771916860653,0.43869977,77.085,77.045,0.28432314]
[1771916860985,11.60545582,77.09,77.048,0.72892577]
[1771916861257,11.60545582,77.08,77.048,0.72892577]
[1771916862065,11.60545582,77.09,77.048,0.72892577]
[1771916862362,12.04411208,77.09,77.05,0.72892577]
[1771916862658,0.43861324,77.079,77.049,12.97875378]
[1771916862866,11.60545582,77.09,77.05,0.72892577]
[1771916863544,11.60545582,77.07,77.049,12.97875378]
[1771916863748,0.43857072,77.079,77.049,12.97875378]
[1771916863936,0.43857072,77.079,77.041,0.72892577]
[1771916863937,0.28432314,77.056,76.994,0.72892577]
[1771916864132,11.60545582,77.03,76.994,0.72892577]
[1771916864336,11.60545582,77.03,76.997,0.72892577]
[1771916864549,11.60545582,77.04,76.997,0.72892577]
[1771916865658,0.43848714,77.029,76.995,12.98785635]
[1771916866343,11.60545582,77.01,76.987,12.98920596]
[1771916866743,11.60545582,77.0,76.962,0.72892577]
[1771916867049,11.60545582,76.99,76.962,0.72892577]
[1771916867948,11.60545582,76.98,76.961,12.99359415]
[1771916868541,0.43832567,77.019,76.962,0.72810676]
[1771916868860,11.60545582,77.0,76.962,0.72810676]
[1771916869165,11.60545582,76.99,76.962,0.72810676]
[1771916869537,11.60545582,76.98,76.962,0.72810676]
[1771916869749,11.60545582,76.99,76.962,0.72810676]
[1771916870954,11.60545582,76.99,76.963,12.99325649]
[1771916871666,11.60545582,76.98,76.963,12.99325649]
[1771916872368,11.60545582,76.97,76.942,0.72810676]
[1771916872671,0.28432314,77.021,76.946,0.72810676]
[1771916872967,11.60545582,77.0,76.956,0.72810676]
[1771916873165,11.60545582,77.01,76.964,0.28432314]
[1771916873362,11.60545582,77.0,76.967,0.72810676]
[1771916873752,12.98364061,77.02,76.967,0.72810676]
[1771916873945,11.60545582,77.0,76.967,0.72810676]
[1771916874141,11.60545582,77.01,76.967,0.72810676]
[1771916874346,11.60545582,77.0,76.969,0.72810676]
[1771916874644,11.60545582,77.01,76.969,0.72810676]
[1771916876566,11.60545582,77.0,76.971,0.72810676]
[1771916878578,11.60545582,76.99,76.963,12.99325649]
[1771916879377,0.2327198,77.013,76.953,0.72810676]
[1771916879577,11.60545582,77.0,76.957,0.72810676]
[1771916880051,11.60545582,76.99,76.957,0.72810676]
[1771916880572,12.98465214,77.014,76.959,0.72810676]
[1771916880871,11.60545582,77.03,76.983,0.72810676]
[1771916881074,11.60545582,77.02,76.987,0.72810676]
[1771916882079,11.60545582,77.03,76.987,0.72810676]
[1771916882372,11.60545582,77.02,76.987,0.72810676]
[1771916882754,24.5891639,77.02,76.988,13.71714401]
[1771916883581,11.60545582,77.0,76.969,0.72810676]
[1771916883766,11.60545582,77.0,76.97,0.72810676]
[1771916885471,11.60545582,76.98,76.951,0.72810676]
[1771916885677,12.98652951,77.003,76.956,0.72810676]
[1771916885889,11.60545582,76.99,76.956,0.72810676]
[1771916886181,12.98652951,77.003,76.956,0.72810676]
[1771916886488,11.60545582,76.99,76.956,0.72810676]
[1771916886663,11.60545582,76.98,76.956,0.72810676]
[1771916887562,11.60545582,76.98,76.956,13.72240335]
[1771916888487,11.60545582,76.97,76.938,0.72810676]
[1771916888684,11.60545582,76.96,76.938,0.72810676]
[1771916889179,12.34179399,76.95,76.922,13.000182]
[1771916889361,11.60545582,76.94,76.922,13.000182]
[1771916889555,11.60545582,76.94,76.902,63.88086188]
[1771916889556,11.60545582,76.94,76.914,0.28432314]
[1771916889870,12.34179399,76.95,76.903,50.87274047]
[1771916890394,12.34179399,76.94,76.903,45.51187859]
[1771916890578,0.73633817,76.961,76.903,45.51187859]
[1771916890886,11.60545582,76.94,76.904,0.28432314]
[1771916891053,11.60545582,76.94,76.905,0.72810676]
[1771916891256,11.60700275,76.94,76.907,0.72810676]
[1771916891872,11.60700275,76.92,76.904,13.00311422]
[1771916892075,0.73633817,76.919,76.889,0.72810676]
[1771916892856,12.34334092,76.91,76.878,0.72810676]
[1771916893276,0.73633817,76.909,76.878,0.72810676]
[1771916893478,12.34334092,76.92,76.878,0.72810676]
[1771916893666,0.73633817,76.919,76.878,0.72810676]
[1771916894364,3.69383402,76.949,76.886,0.72810676]
[1771916894365,11.60700275,76.93,76.886,0.72810676]
[1771916894658,12.34334092,76.93,76.886,0.72810676]
[1771916894984,11.60700275,76.92,76.886,0.72810676]
[1771916895190,0.73633817,76.929,76.886,0.72810676]
[1771916895666,11.60700275,76.93,76.892,0.28432314]
[1771916895864,11.60700275,76.94,76.897,0.72810676]
[1771916896064,12.99730955,76.939,76.897,0.72810676]
[1771916896263,11.60700275,76.93,76.899,0.72810676]
[1771916896661,12.99730955,76.939,76.899,0.72810676]
[1771916896861,11.60700275,76.95,76.907,0.72810676]
[1771916897076,103.9,76.987,76.898,45.51483783]
[1771916897077,11.60700275,76.97,76.93,0.28432314]
[1771916897255,11.60700275,76.97,76.937,0.72810676]
[1771916898865,0.65755652,76.969,76.923,45.64220707]
[1771916899161,0.65755652,76.981,76.923,97.64225907]
[1771916899485,3.69383402,77.0,76.927,0.14216157]
[1771916899486,11.60700275,76.97,76.927,0.14216157]
[1771916899665,0.65755652,76.979,76.927,0.14216157]
[1771916900481,12.99072462,76.978,76.927,45.63984118]
[1771916900690,0.65755652,76.977,76.927,45.63984118]
[1771916900983,0.65755652,76.969,76.936,0.67702201]
[1771916902083,0.65755652,76.969,76.937,45.49176598]
[1771916902258,0.65755652,76.969,76.937,46.16878799]
[1771916902883,11.60700275,76.96,76.937,12.99764742]
[1771916903092,11.60700275,76.95,76.921,13.000351]
[1771916903387,0.68316169,76.959,76.922,0.66134583]
[1771916903982,0.68316169,76.959,76.926,0.66134583]
[1771916905487,0.68316169,76.977,76.936,0.66134583]
[1771916905885,11.60700275,76.97,76.936,0.66134583]
[1771916906572,0.68316169,76.977,76.938,0.66134583]
[1771916907097,0.68316169,76.969,76.938,0.66134583]
[1771916907474,0.68316169,76.969,76.937,12.99764742]
[1771916907672,0.68316169,76.959,76.937,12.99764742]
[1771916907870,45.46871751,76.976,76.9,103.5]
[1771916907871,0.68316169,76.949,76.916,0.66134583]
[1771916908774,0.68316169,76.949,76.918,0.66134583]
[1771916911302,12.99444101,76.956,76.866,39.1]
[1771916911303,0.68316169,76.939,76.906,32.50703715]
[1771916911480,0.68316169,76.929,76.892,0.66134583]
[1771916912200,0.68316169,76.929,76.896,0.66134583]
[1771916912500,0.68316169,76.939,76.896,0.66134583]
[1771916913281,0.68316169,76.939,76.907,0.66134583]
[1771916914094,0.68316169,76.947,76.907,0.66134583]
[1771916915504,0.68316169,76.947,76.909,0.66134583]
[1771916915998,0.68316169,76.939,76.909,0.66134583]
[1771916916903,0.68316169,76.949,76.909,0.66134583]
[1771916917106,0.68316169,76.949,76.915,0.66134583]
[1771916917899,0.68316169,76.949,76.917,0.66134583]
[1771916918203,0.68316169,76.959,76.917,0.66134583]
[1771916918387,0.68316169,76.959,76.925,0.66134583]
[1771916919082,0.68316169,76.969,76.925,0.66134583]
[1771916919283,0.68316169,76.979,76.936,0.66134583]
[1771916920103,0.68316169,76.969,76.938,0.66134583]
[1771916922509,0.68316169,76.969,76.939,12.99730955]
[1771916923209,0.68316169,76.969,76.939,45.49058344]
[1771916924696,0.68316169,76.969,76.939,32.49327389]
[1771916925612,0.68316169,76.969,76.939,33.15461972]
[1771916925901,0.68316169,76.969,76.94,0.66134583]
[1771916926511,0.68316169,76.969,76.948,0.2]
[1771916927019,0.68316169,76.969,76.949,12.99562047]
[1771916927710,0.68316169,76.969,76.958,0.2]
[1771916928301,15.29148954,77.0,76.949,12.99562047]
[1771916928302,0.64762336,76.983,76.951,0.61439568]
[1771916930215,0.64762336,76.983,76.952,12.99511383]
[1771916930417,0.64762336,76.979,76.952,45.48289842]
[1771916930912,0.64762336,76.979,76.952,46.0972941]
[1771916931492,0.64762336,76.991,76.96,11.59765552]
[1771916931698,0.64762336,76.991,76.952,45.48289842]
[1771916931699,0.64762336,76.991,76.97,11.59765552]
[1771916931890,0.64762336,76.991,76.961,0.61439568]
[1771916932716,0.64762336,76.989,76.962,12.99342532]
[1771916932904,0.64762336,76.979,76.962,12.99342532]
[1771916933508,0.64762336,76.989,76.962,12.99342532]
[1771916933706,0.64762336,76.989,76.962,45.47698863]
[1771916933894,0.64762336,76.989,76.962,12.99342532]
[1771916934707,0.64762336,76.989,76.971,0.2]
[1771916936036,24.58635535,76.99,76.971,0.2]
[1771916936037,0.64762336,76.987,76.971,0.2]
[1771916936219,0.64762336,76.987,76.961,13.19344312]
[1771916936431,0.64762336,76.979,76.961,0.2]
[1771916936812,0.64762336,76.979,76.962,12.99342532]
[1771916937620,12.99072462,76.978,76.938,0.81439568]
[1771916937824,0.64762336,76.959,76.938,0.2]
[1771916938826,0.64762336,76.959,76.939,12.99730955]
[1771916940617,0.64762336,76.949,76.914,0.61439568]
[1771916940932,0.64399986,76.947,76.915,0.61439568]
[1771916941104,11.59765552,76.95,76.915,0.61439568]
[1771916941310,0.64399986,76.949,76.921,0.61439568]
[1771916941504,0.64399986,76.949,76.914,13.0013724]
[1771916941505,0.64093183,76.939,76.914,13.0013724]
[1771916941714,0.64093183,76.929,76.89,11.59765552]
[1771916941924,0.64093183,76.929,76.889,0.61439568]
[1771916941925,0.64093183,76.919,76.889,0.61439568]
[1771916942131,0.64093183,76.919,76.891,13.00542326]
[1771916942738,0.64093183,76.919,76.893,13.61948066]
[1771916943028,11.59765552,76.92,76.893,13.00508498]
[1771916943230,0.63789904,76.959,76.91,11.59765552]
[1771916943555,11.59765552,76.96,76.921,0.61439568]
[1771916943926,11.59765552,76.96,76.931,0.61439568]
[1771916944426,0.63939715,76.949,76.915,0.61439568]
[1771916945326,12.99578936,76.948,76.917,0.61439568]
[1771916945513,13.63666741,76.948,76.917,0.61439568]
[1771916945712,0.64234195,76.947,76.917,0.61439568]
[1771916946805,11.59765552,76.94,76.917,0.61439568]
[1771916947012,0.64422302,76.939,76.907,0.61439568]
[1771916947320,0.28432314,76.955,76.9,0.61439568]
[1771916947529,11.59765552,76.93,76.902,0.62755284]
[1771916948231,11.59765552,76.92,76.902,0.62755284]
[1771916948531,11.59765552,76.92,76.872,5.36086188]
[1771916948532,11.59765552,76.91,76.889,13.00572918]
[1771916949434,13.00068903,76.919,76.885,0.62755284]
[1771916949732,12.99914115,76.929,76.891,0.62755284]
[1771916951017,12.99914115,76.929,76.893,0.62755284]
[1771916951539,11.59765552,76.93,76.893,0.62755284]
[1771916951833,24.59660014,76.93,76.893,0.62755284]
[1771916953231,24.6101127,76.93,76.894,13.00491585]
[1771916953417,24.6101127,76.93,76.895,0.62755284]
[1771916954537,11.61116808,76.93,76.897,0.62755284]
[1771916954735,24.61000549,76.93,76.897,0.62755284]
[1771916957032,11.61116808,76.94,76.901,0.62755284]
[1771916959932,12.99730955,76.939,76.903,0.62755284]
[1771916961119,11.67024402,76.93,76.903,0.62755284]
[1771916963438,12.99899907,76.929,76.903,0.62755284]
[1771916965835,12.99899907,76.929,76.905,0.62755284]
[1771916966733,0.0830299,76.947,76.905,0.62755284]
[1771916966920,11.61116808,76.94,76.905,0.62755284]
[1771916967428,11.69746457,76.94,76.905,0.62755284]
[1771916967744,11.61116808,76.93,76.906,13.63043948]
[1771916968440,11.61116808,76.92,76.9,13.00388242]
[1771916969215,0.08629649,76.928,76.9,13.00388242]
[1771916969846,0.08629649,76.928,76.901,0.62755284]
[1771916971140,0.08629649,76.928,76.902,13.00356297]
[1771916974247,0.08629649,76.928,76.903,0.62755284]
[1771916976639,0.08629649,76.928,76.904,13.00322479]
[1771916980540,0.08629649,76.928,76.904,0.62755284]
[1771916981546,13.12525036,76.941,76.904,0.62755284]
[1771916981755,5.20242667,76.93,76.904,0.62755284]
[1771916983451,5.20242667,76.95,76.911,0.62755284]
[1771916984938,5.20242667,76.95,76.915,0.62755284]
[1771916985745,5.20242667,76.95,76.925,0.62755284]
[1771916986749,5.20242667,76.96,76.925,0.62755284]
[1771916987757,5.20242667,76.97,76.931,0.62755284]
[1771916988544,5.20242667,76.96,76.931,0.62755284]
[1771916988938,5.35181684,76.96,76.931,0.62755284]
[1771916990037,0.15189455,76.949,76.928,12.99913195]
[1771916990361,3.69383402,76.982,76.928,12.99913195]
[1771916990362,5.30242667,77.04,76.941,0.28432314]
[1771916990537,0.15189455,77.025,76.991,0.6907728]
[1771916990737,0.15189455,77.025,77.0,5.20242667]
[1771916990943,0.15189455,77.025,77.0,0.6907728]
[1771916991253,0.1,77.04,77.021,0.6907728]
[1771916991453,12.97067398,77.097,77.051,0.6907728]
[1771916991652,12.97067398,77.097,77.066,0.6907728]
[1771916991849,12.97067398,77.097,77.065,6.65384196]
[1771916991850,5.20242667,77.08,77.065,6.65384196]
[1771916992556,5.20242667,77.1,77.066,12.97589079]
[1771916992763,5.20242667,77.11,77.071,0.70596163]
[1771916992951,5.20242667,77.1,77.071,0.70596163]
[1771916993463,11.56117502,77.1,77.071,0.70596163]
[1771916993966,11.56117502,77.1,77.072,0.70596163]
[1771916994662,11.56117502,77.08,77.065,6.65384196]
[1771916996262,45.39735656,77.097,77.065,6.65384196]
[1771916996451,11.56117502,77.08,77.065,6.65384196]
[1771916997071,11.56117502,77.08,77.056,0.70596163]
[1771916997458,3.69383402,77.112,77.041,32.45012602]
[1771916997459,11.56117502,77.1,77.061,0.70596163]
[1771916997765,12.46924153,77.106,77.061,0.70596163]
[1771916997955,12.46924153,77.106,77.071,0.70596163]
[1771916998446,11.56117502,77.1,77.071,0.70596163]
[1771916999771,51.86241615,77.128,77.071,0.70596163]
[1771916999772,12.96680497,77.12,77.081,0.70596163]
[1771917000060,24.52797999,77.12,77.091,0.70596163]
[1771917000269,11.56117502,77.12,77.091,0.70596163]
[1771917000470,12.96460157,77.134,77.101,0.70596163]
[1771917000848,11.56117502,77.12,77.092,0.70596163]
[1771917001357,24.5263293,77.13,77.092,0.70596163]
[1771917001550,11.56117502,77.13,77.092,0.70596163]
[1771917001857,0.0285249,77.119,77.086,0.70596163]
[1771917002058,11.56117502,77.1,77.075,0.2]